[Event "Polish Youth G18 Championship 2023"]
[Site "Jastrzebia Gora"]
[Date "2023.03.14"]
[Round "4.1"]
[White "Starosta, Martyna"]
[Black "Skolska, Emilia"]
[Result "1-0"]
[ECO "A65"]
[WhiteElo "2138"]
[BlackElo "1586"]
[Annotator "TA"]
[PlyCount "75"]
[EventDate "2023.03.11"]
[EventType "swiss"]
[EventCountry "POL"]
[SourceTitle "playchess.com"]
[Source "ChessBase"]
[SourceQuality "1"]
[TimeControl "40/5400+30:1800+30"]

{[%evp 18,75,19,22,44,47,45,51,51,21,25,37,37,43,53,25,68,43,35,-34,0,0,0,0,31,16,86,44,105,44,50,51,52,32,112,117,216,104,102,54,75,-33,-14,-66,-58,-50,-30,-42,-58,-79,85,89,91,0,0,0,0,-126,74,39]} 1. d4 {[%emt 0:00:03]} Nf6 {[%emt 0:00:06]} 2. c4 {[%emt 0:00:05]} c5 {[%emt 0:00:06]} 3. d5 {[%emt 0:00:06]} e6 {[%emt 0:00:07]} 4. Nc3 {[%emt 0:00:13]} exd5 {[%emt 0:00:09]} 5. cxd5 {[%emt 0:00:04]} d6 {[%emt 0:00:12]} 6. e4 {[%emt 0:00:19]} a6 {[%emt 0:00:20]} 7. a4 {[%emt 0:05:30]} g6 {[%emt 0:00:53]} 8. f4 {[%emt 0:03:53]} Bg7 {[%emt 0:01:02]} 9. Nf3 {[%emt 0:00:35]} O-O {[%emt 0:01:28]} 10. Bd3 {[%emt 0:00:33]} Re8 {[%emt 0:02:04][%cal Of6e4] A68: Modern Benoni: Four Pawns Attack without 9...Re8.} 11. O-O $1 {[%emt 0:00:09]} c4 {[%emt 0:09:25]} 12. Bc2 {[%emt 0:08:04]} Bg4 {[%emt 0:01:54] White is slightly better.} 13. h3 {[%emt 0:06:23]} Bxf3 {[%emt 0:00:16]} 14. Qxf3 {[%emt 0:00:10]} Nbd7 {[%emt 0:04:44]} 15. Be3 {[%emt 0:04:23] [#]} b6 $146 {[%emt 0:08:12]} ({Predecessor:} 15... Qa5 16. Rae1 b5 17. axb5 axb5 18. Ne2 b4 19. Bd4 Re7 {0-1 Zubritskiy,A (2442)-Khalifman,A (2617) EU-ch rapid Tallinn 2016 (4)}) 16. Rae1 {[%emt 0:02:28]} Rb8 {[%emt 0:02:48]} 17. Bd4 {[%emt 0:03:16]} Qc7 {[%emt 0:03:30][%cal Of6d5]} 18. g4 {[%emt 0:04:41]} (18. Kh1 $14) 18... b5 {[%emt 0:08:33][%cal Of6d5]} (18... Nxd5 $5 {[%cal Rg7d4]} 19. Bxg7 Nb4 $11) 19. axb5 {[%emt 0:06:12]} axb5 {[%emt 0:00:06][%cal Of6d5]} 20. Ne2 {[%emt 0:03:09][%cal Bc3e2,Be2d4,Bd4c6][%mdl 32]} Re7 {[%emt 0:12:44]} 21. g5 {[%emt 0:08:40]} Ne8 {[%emt 0:00:31]} (21... Nh5 $11 {remains equal.}) 22. Kh1 {[%emt 0:01:16] White is more active.} Nc5 {[%emt 0:06:03]} (22... Ra8 $14) 23. Bxg7 {[%emt 0:03:02]} ({Better is} 23. f5 $16 {Bxg7 would be deadly.} Be5 24. f6) 23... Nxg7 $14 {[%emt 0:00:08]} 24. Nd4 {[%emt 0:00:44]} Ree8 {[%emt 0:02:11]} 25. f5 {[%emt 0:03:48]} Qd7 {[%emt 0:07:22]} (25... Ra8 $14) 26. Nc6 $16 {[%emt 0:02:01]} Rb7 {[%emt 0:01:40]} (26... Rbc8 $16) 27. Re2 {[%emt 0:05:38]} (27. f6 $18 {has better winning chances.} Nh5 28. e5) 27... Nh5 {[%emt 0:09:30]} 28. Rg2 {[%emt 0:03:45]} ({White should try} 28. h4 $16) 28... Qc8 $14 {[%emt 0:05:06]} 29. Rg4 {[%emt 0:01:35]} (29. Kh2 $16) 29... Nd7 $15 {[%emt 0:02:48]} 30. Rh4 {[%emt 0:11:25]} (30. Qc3 $11) 30... Ne5 $1 {[%emt 0:00:47]} 31. Nxe5 {[%emt 0:00:08]} Rxe5 {[%emt 0:00:05]} 32. Bd1 $1 {[%emt 0:02:22]} Qe8 {[%emt 0:01:22][%cal Oe5e4]} 33. Rg1 {[%emt 0:03:49]} b4 $2 {[%emt 0:03:16] [#]} (33... Rbe7 $17 {[%cal Re5e4]} 34. Bc2 Qa8) 34. Qg2 $36 {[%emt 0:01:12][%mdl 2048] White is on the roll.} Rbe7 {[%emt 0:01:27][%cal Re5e4]} 35. Bf3 {[%emt 0:03:19]} ({White should play} 35. Bxh5 $16 {Threatens to win with fxg6.} Rxe4 36. Rxe4 Rxe4 37. Bf3) 35... c3 $11 {[%emt 0:01:24]} 36. f6 Rc7 {[%emt 0:00:22] White must now prevent ...c2.} 37. Bxh5 {[%emt 0:01:18] [#]} (37. bxc3 $1 $11 bxc3 38. Bxh5) 37... gxh5 $2 {[%emt 0:00:12]} (37... c2 $1 $17 {[%cal Rc2c1] and life is bright.} 38. Rc1 Qa4) 38. Qf3 {[%emt 0:00:58] Weighted Error Value: White=0.36/Black=0.39} 1-0

[Event "Polish Youth G18 Championship 2023"]
[Site "Jastrzebia Gora"]
[Date "2023.03.14"]
[Round "4.2"]
[White "Barwinska, Ewa"]
[Black "Goraj, Barbara"]
[Result "0-1"]
[ECO "B67"]
[WhiteElo "1963"]
[BlackElo "2130"]
[Annotator "TA"]
[PlyCount "82"]
[EventDate "2023.03.11"]
[EventType "swiss"]
[EventCountry "POL"]
[SourceTitle "playchess.com"]
[Source "ChessBase"]
[SourceQuality "1"]
[TimeControl "40/5400+30:1800+30"]

{[%evp 24,82,30,30,55,41,57,55,78,75,89,96,96,63,63,47,118,50,87,94,78,70,87,75,142,0,0,0,0,-54,-42,-48,-48,-73,-77,-161,-162,-158,-156,-221,-205,-191,-191,-414,-388,-376,-354,-355,-366,-362,-316,-273,-306,-318,-295,-297,-288,-943,-825,-735,-390]} 1. e4 {[%emt 0:00:02]} c5 {[%emt 0:00:11]} 2. Nf3 {[%emt 0:00:10]} Nc6 {[%emt 0:00:11]} 3. d4 {[%emt 0:00:08]} cxd4 {[%emt 0:00:08]} 4. Nxd4 {[%emt 0:00:06]} Nf6 {[%emt 0:00:12]} 5. Nc3 {[%emt 0:00:07]} d6 {[%emt 0:00:08]} 6. Bg5 {[%emt 0:00:12]} e6 {[%emt 0:00:53]} 7. Qd2 {[%emt 0:02:36]} a6 {[%emt 0:01:00]} 8. O-O-O {[%emt 0:01:14]} Bd7 {[%emt 0:01:17]} 9. f4 {[%emt 0:00:31][%cal Bf2f4,Bf4f5][%mdl 32]} b5 {[%emt 0:01:20]} 10. Bxf6 {[%emt 0:00:52]} gxf6 {[%emt 0:00:11]} 11. Kb1 {[%emt 0:00:35]} Qb6 {[%emt 0:00:38]} 12. Nxc6 {[%emt 0:03:33]} Bxc6 {[%emt 0:00:22]} 13. f5 {[%emt 0:05:41]} h5 {[%emt 0:02:58] B67: Sicilian: Richter-Rauzer: 7...a6 8 0-0-0 Bd7, lines without 9 f4 Be7.} 14. Qe1 {[%emt 0:10:54]} O-O-O {[%emt 0:08:02]} 15. Bd3 {[%emt 0:09:08]} Qc5 {[%emt 0:10:02] White is slightly better.} 16. Rf1 {[%emt 0:06:52]} Bg7 {[%emt 0:17:05]} 17. Qg3 {[%emt 0:11:17]} Rdg8 {[%emt 0:05:25] [#]} 18. Qh3 $146 {[%emt 0:02:55]} (18. Be2 {looks sharper.} Kc7 19. a3 Qe5 20. Qf2) ({Predecessor:} 18. Qh4 Kb8 19. Rf3 b4 20. Ne2 Rc8 21. c3 Bb7 22. cxb4 Qxb4 23. Ka1 Qa4 24. Qe1 {½-½ Moreira,C (1736)-Sherwood,R (1803) LSS SC-2010-0-00085}) 18... Qe5 {[%emt 0:02:42]} 19. Ne2 {[%emt 0:06:39]} Bh6 {[%emt 0:04:20] [#]} (19... Kb8 $14) 20. Ng1 {[%emt 0:10:53]} (20. fxe6 $1 $16 fxe6 21. Nd4) 20... Bd7 {[%emt 0:06:25]} 21. Nf3 {[%emt 0:05:33]} Qc5 {[%emt 0:00:34]} 22. c3 {[%emt 0:02:50]} (22. a3 {simplifies} e5 23. Qh4 Bg5 24. Nxg5 fxg5 25. Qe1) 22... Kd8 {[%emt 0:06:22]} 23. Nd4 {[%emt 0:02:15][%cal Rf5e6]} (23. Qxh5 $6 Ke7 24. Ne1 Bg5 $11) 23... Ke7 {[%emt 0:01:38]} (23... e5 $142) 24. Qf3 {[%emt 0:04:30]} (24. Qxh5 Bf4 25. Qf3 Be5 $15) (24. fxe6 $16 fxe6 25. Qf3) 24... e5 $11 {[%emt 0:07:01]} 25. Nc2 {[%emt 0:03:12]} a5 {[%emt 0:01:04] Inhibits Nb4.} 26. a3 {[%emt 0:02:39]} (26. Qxh5 Rxg2 27. Qh3 Rgg8 $17) ({Better is} 26. Be2 $11) 26... Bc6 $15 {[%emt 0:02:42]} 27. g3 {[%emt 0:01:38] [#]} ({But not} 27. Qxh5 Rxg2 28. Qh3 Rgg8 $17) 27... h4 $1 {[%emt 0:02:32]} 28. g4 {[%emt 0:00:36]} (28. gxh4 Bb7) 28... h3 {[%emt 0:00:37][%mdl 64] Deflection} 29. Qxh3 {[%emt 0:02:02]} (29. Rfe1 $17) 29... Bf4 $19 {[%emt 0:00:42]} 30. Qf3 {[%emt 0:00:01]} Rxh2 {[%emt 0:00:26] Black is more active. White is weak on the dark squares} (30... Bxh2 31. Rh1 $15) 31. Rh1 {[%emt 0:01:15]} (31. Nd4 $17) 31... Rf2 {[%emt 0:04:51]} 32. Qh3 {[%emt 0:00:02]} d5 {[%emt 0:00:11]} 33. exd5 {[%emt 0:02:43]} (33. Rhe1) 33... Bxd5 {[%emt 0:00:26]} ({Stronger than} 33... Qxd5 34. Rhe1 $19) 34. Rhe1 {[%emt 0:02:09]} Bf3 {[%emt 0:02:59][%cal Of3g4][%mdl 64] Prevents Be4. Trapped Piece. A strong pair of Bishops.} 35. Be4 {[%emt 0:01:06]} Bxd1 {[%emt 0:01:46]} 36. Rxd1 {[%emt 0:00:05]} Rd8 {[%emt 0:03:17] Wards off Qd3} 37. Rxd8 {[%emt 0:00:44]} Kxd8 {[%emt 0:00:07]} 38. Qd3+ {[%emt 0:00:03]} Ke7 {[%emt 0:02:34]} 39. b4 {[%emt 0:01:28]} axb4 {[%emt 0:01:37]} 40. Nxb4 {[%emt 0:00:00]} (40. axb4 Qb6 41. Qd5) 40... Rd2 {[%emt 0:00:00] ( -> ...Qg1+)} 41. Qf1 {[%emt 0:02:32] Repels Qg1} Kd6 {[%emt 0:07:49] Excellently played by Goraj!   Weighted Error Value: White=0.54/Black=0.15 (very precise)} ({Inferior is} 41... Qxc3 42. Nd5+ Rxd5 43. Bxd5 $17) 0-1

[Event "Polish Youth G18 Championship 2023"]
[Site "Jastrzebia Gora"]
[Date "2023.03.14"]
[Round "4.3"]
[White "Zabrzanska, Weronika"]
[Black "Labedz, Gabriela"]
[Result "1-0"]
[ECO "B28"]
[WhiteElo "2021"]
[BlackElo "1425"]
[Annotator "TA"]
[PlyCount "79"]
[EventDate "2023.03.11"]
[EventType "swiss"]
[EventCountry "POL"]
[SourceTitle "playchess.com"]
[Source "ChessBase"]
[SourceQuality "1"]
[TimeControl "40/5400+30:1800+30"]

{[%evp 10,79,31,42,29,24,41,37,29,29,35,26,31,22,39,27,24,16,37,14,16,10,50,52,49,65,59,15,23,12,51,56,55,23,36,41,25,-30,-27,-29,-22,-216,-55,-57,-60,-68,-68,-63,-51,-89,146,73,137,109,110,83,130,67,141,124,146,154,29993,29994,29994,29995,29995,29996,29996,29997,29997,-134]} 1. e4 {[%emt 0:00:03]} c5 {[%emt 0:00:03]} 2. Nf3 {[%emt 0:00:45]} a6 {[%emt 0:00:04]} 3. c3 {[%emt 0:00:15]} d5 {[%emt 0:00:05]} 4. exd5 {[%emt 0:01:08]} Qxd5 {[%emt 0:00:05]} 5. d4 {[%emt 0:01:07]} e6 {[%emt 0:00:14]} 6. Be2 {[%emt 0:01:35]} Nc6 {[%emt 0:01:25] B28: Sicilian: 2 Nf3 a6 (O'Kelly Variation).} 7. O-O {[%emt 0:00:39]} cxd4 {[%emt 0:04:56]} 8. Nxd4 {[%emt 0:04:19]} Nxd4 {[%emt 0:02:10] White is slightly better.} 9. cxd4 {[%emt 0:00:11]} Nf6 {[%emt 0:03:18]} 10. Bf3 {[%emt 0:03:25]} Qd8 {[%emt 0:02:27]} 11. Nc3 {[%emt 0:00:44]} Be7 {[%emt 0:03:17] [#]} 12. Bf4 $146 {[%emt 0:00:57]} ({Predecessor:} 12. Qb3 O-O 13. Rd1 Qc7 14. Be3 Rb8 15. Rac1 b5 16. d5 Bd6 17. Ne4 Qe7 18. Nxd6 Qxd6 19. Bc5 {1-0 Gantner,R-Jovicic,N Baden-ch HT1 2003 (8.3)}) 12... O-O {[%emt 0:03:37]} 13. Rc1 {[%emt 0:02:02]} Bd6 {[%emt 0:06:46]} 14. Bg5 {[%emt 0:01:32]} h6 {[%emt 0:03:58]} 15. Bh4 {[%emt 0:01:27]} g5 {[%emt 0:03:08]} 16. Bg3 {[%emt 0:00:22]} Bxg3 {[%emt 0:01:31]} 17. fxg3 {[%emt 0:05:21]} Rb8 {[%emt 0:06:19]} 18. Rc2 {[%emt 0:03:18]} b5 {[%emt 0:05:25]} 19. Rcf2 {[%emt 0:04:41]} b4 {[%emt 0:04:15]} (19... Rb6 {is interesting.} 20. Bh5 Nxh5 21. Qxh5 Qxd4 22. Qxh6 Qg7) 20. Na4 {[%emt 0:04:06]} Nd5 {[%emt 0:04:33] White must now prevent ...Ne3.} 21. Qe2 {[%emt 0:12:25] Wards off Ne3} Bd7 {[%emt 0:07:13]} 22. Bxd5 {[%emt 0:03:11]} exd5 {[%emt 0:03:42]} 23. Nc5 {[%emt 0:07:36]} (23. Qxa6 $142 Bb5 24. Qxh6 Bxf1 25. Rxf1) 23... Bb5 $11 {[%emt 0:02:29]} 24. Nd3 $1 {[%emt 0:00:53]} Qb6 {[%emt 0:02:59]} 25. Qe5 {[%emt 0:08:09]} Bxd3 $2 {[%emt 0:09:25]} ({Black should play} 25... Qg6 $19 26. Nc5 Rfe8) 26. Rf6 $1 $15 {[%emt 0:00:22]} Bxf1 {[%emt 0:02:19]} 27. Rxb6 {[%emt 0:00:22]} Rxb6 {[%emt 0:00:12]} 28. Kxf1 {[%emt 0:00:15][%cal Oh2h4][%mdl 4096] Endgame KQ-KRR} Rd8 {[%emt 0:01:20]} 29. h4 $1 {[%emt 0:01:31]} f6 $2 {[%emt 0:04:20] [#]} (29... Re6 $17 30. Qf5 Rde8) 30. Qc7 {[%emt 0:02:18]} (30. Qf5 $142 $1) 30... Rbb8 {[%emt 0:01:17]} (30... Rdd6 $142) 31. Qa7 {[%emt 0:03:14][%mdl 1024] White has strong compensation. White is more active.} Ra8 {[%emt 0:01:18]} 32. Qb6 {[%emt 0:00:56]} a5 {[%emt 0:01:28]} ({Black should try} 32... Kf7) 33. b3 {[%emt 0:01:09]} (33. Qxf6 $2 {perishes.} Rf8 $19) ({But not} 33. hxg5 $6 hxg5 34. Qc7 (34. Qxf6 $2 Rf8 $19) 34... Re8 $11) (33. Qe6+ $16 Kg7 34. Qe7+ Kg8 35. Kg1 (35. Qxf6 $2 Rf8 $19)) 33... Kg7 {[%emt 0:03:05]} ({Better is} 33... gxh4 $14 34. gxh4 Kf7) 34. Qb7+ {[%emt 0:02:07]} Kg6 {[%emt 0:04:24]} 35. h5+ $1 {[%emt 0:03:25][%mdl 64] Decoy} Kxh5 $2 {[%emt 0:00:34]} (35... Kf5 $16) 36. Qf7+ {[%emt 0:00:16] White mates.} Kg4 {[%emt 0:00:06]} 37. Qe6+ {[%emt 0:00:25]} Kh5 {[%emt 0:00:11] [#]} 38. Qf5 $1 {[%emt 0:00:22]} (38. Qxf6 {leads to mate.} Rf8) 38... Rac8 {[%emt 0:03:22]} 39. g4+ {[%emt 0:00:20]} Kh4 {[%emt 0:00:26]} 40. Qf2+ {[%emt 0:00:00][%mdl 32768] Weighted Error Value: White=0.26 (precise) /Black=0.52. Loss on time!?} 1-0

[Event "Polish Youth G18 Championship 2023"]
[Site "Jastrzebia Gora"]
[Date "2023.03.14"]
[Round "4.4"]
[White "Jedrzejko, Martyna"]
[Black "Hertlein, Irena"]
[Result "0-1"]
[ECO "B19"]
[WhiteElo "1629"]
[BlackElo "1994"]
[Annotator "TA"]
[PlyCount "140"]
[EventDate "2023.03.11"]
[EventType "swiss"]
[EventCountry "POL"]
[SourceTitle "playchess.com"]
[Source "ChessBase"]
[SourceQuality "1"]
[TimeControl "40/5400+30:1800+30"]

{[%evp 24,139,24,0,2,-18,-14,-44,-38,-43,0,-22,0,0,0,0,-10,-17,0,-16,-23,-76,-73,-62,-52,-39,-47,-78,1,-139,0,-133,0,0,0,0,0,0,27,34,32,27,29,9,9,7,8,2,11,2,18,18,18,11,11,15,14,8,8,7,7,0,7,0,0,0,0,0,0,0,0,0,0,0,0,0,0,0,0,0,0,0,0,-8,-8,-8,-8,-8,0,0,0,0,0,-28,-28,-28,-28,-28,-28,-47,-47,-29975,-29976,-29973,-29976,-29977,-29977,-29979,-29980,-29980,-29981,-29982,-29983,-29985,-29985,-29986,-29987,-29989]} 1. e4 {[%emt 0:00:03]} c6 {[%emt 0:00:13]} 2. d4 {[%emt 0:00:09]} d5 {[%emt 0:00:11]} 3. Nd2 {[%emt 0:00:11]} dxe4 {[%emt 0:00:14]} 4. Nxe4 {[%emt 0:00:10]} Bf5 {[%emt 0:00:17]} 5. Ng3 {[%emt 0:00:11]} Bg6 {[%emt 0:00:09]} 6. h4 {[%emt 0:00:21]} h6 {[%emt 0:00:13]} 7. Nf3 {[%emt 0:00:17]} Nd7 {[%emt 0:00:33]} 8. h5 {[%emt 0:00:13]} Bh7 {[%emt 0:00:06]} 9. Bd3 {[%emt 0:00:14]} Bxd3 {[%emt 0:00:23]} 10. Qxd3 {[%emt 0:00:09]} e6 {[%emt 0:00:16]} 11. Bd2 {[%emt 0:00:20]} Ngf6 {[%emt 0:00:13]} 12. O-O-O {[%emt 0:01:13]} Be7 {[%emt 0:00:11]} 13. Kb1 {[%emt 0:00:24]} Qb6 {[%emt 0:00:24] B19: Classical Caro-Kann: 4...Bf5 main line.} 14. c4 {[%emt 0:06:09]} O-O {[%emt 0:09:53]} 15. Ne4 {[%emt 0:02:21]} c5 {[%emt 0:07:09] Black is slightly better.} 16. Bc3 {[%emt 0:05:53][%cal Og2g4]} cxd4 {[%emt 0:01:46]} 17. Bxd4 Qc6 {[%emt 0:00:17]} 18. Nxf6+ {[%emt 0:02:48]} Bxf6 {[#]} 19. Qe2 $146 {[%emt 0:08:08]} ({Predecessor:} 19. Rhe1 Rfe8 20. g4 Rac8 21. Bxf6 Nxf6 22. Ne5 Qc7 23. Qe3 a6 24. f4 Red8 25. Qe2 Nd7 26. Rxd7 Rxd7 27. Nxd7 Qxd7 28. Rd1 {½-½ Krejci,J (1616)-Jaracz,P (2476) CZE-chT rap Pardubice 2016 (7.1)}) 19... Rac8 {[%emt 0:26:31]} 20. b3 {[%emt 0:00:30]} a5 {[%emt 0:17:58]} 21. g4 {[%emt 0:09:14][%cal Og4g5]} a4 {[%emt 0:04:45]} 22. Rhg1 {[%emt 0:04:54]} (22. g5 $11 {remains equal.} hxg5 23. h6) 22... axb3 $17 {[%emt 0:08:17]} 23. axb3 {[%emt 0:00:09] [#]} e5 $1 {[%emt 0:09:21]} 24. Bb2 {[%emt 0:07:55]} (24. Bxe5 $2 Rfe8 25. Rd5 Qe6 $19) 24... Nc5 {[%emt 0:00:21]} 25. Qe3 {[%emt 0:04:34]} (25. Bxe5 $2 Rfe8 26. Nd4 (26. b4 $2 Ne4 $19) 26... Rxe5 $19) 25... Qb6 {[%emt 0:05:03]} ({Better is} 25... Rfe8 $17 {White must now prevent ...e4.} 26. Rd5 e4) 26. Kc2 {[%emt 0:02:53]} (26. g5 $11 hxg5 27. Nxg5) 26... Qb4 {[%emt 0:05:54]} (26... e4 $17 27. Bxf6 {[%mdl 64] Remove Defender} Qxf6) 27. Ra1 {[%emt 0:03:23] [#]} (27. Qc3 $11 Qb6 28. Nxe5) 27... Nxb3 {[%emt 0:02:18]} 28. Qxb3 $11 {[%emt 0:01:46]} Rxc4+ {[%emt 0:00:01]} 29. Bc3 {[%emt 0:00:12]} Rxc3+ {[%emt 0:01:27]} 30. Qxc3 {[%emt 0:00:07]} Qxc3+ {[%emt 0:00:01]} 31. Kxc3 {[%emt 0:00:11]} e4+ {[%emt 0:00:01]} 32. Nd4 {[%emt 0:01:20]} Rc8+ {[%emt 0:00:07]} 33. Kb3 {[%emt 0:01:05]} Bxd4 {[%emt 0:00:02][%mdl 4096] Endgame KRR-KRB} 34. Ra2 {[%emt 0:00:32]} Rc3+ {[%emt 0:00:30]} 35. Kb4 {[%emt 0:00:30]} Rf3 {[%emt 0:02:16]} 36. Rg2 {[%emt 0:11:54]} b6 {[%emt 0:00:30]} 37. Kc4 {[%emt 0:01:05]} Bc5 {[%emt 0:00:18]} 38. Re2 {[%emt 0:00:36]} e3 {[%emt 0:00:44]} 39. fxe3 {[%emt 0:00:37]} Bxe3 {[%emt 0:00:30]} 40. Kb5 {[%emt 0:00:30]} g6 {[%emt 0:00:00]} 41. Rc2 {[%emt 0:04:05]} Bc5 {[%emt 0:03:05]} 42. Rce2 {[%emt 0:05:28]} Kg7 {[%emt 0:02:51]} 43. Re8 {[%emt 0:05:17]} Kf6 {[%emt 0:09:51]} 44. Rh8 {[%emt 0:01:53]} Kg5 {[%emt 0:02:04]} 45. hxg6 {[%emt 0:01:40]} fxg6 {[%emt 0:00:35]} 46. Re8 {[%emt 0:04:48]} Rf6 {[%emt 0:07:40]} 47. Re5+ {[%emt 0:01:59]} Kf4 {[%emt 0:01:10]} 48. Re1 {[%emt 0:01:25][%cal Og4g5] Hoping for g5!} Kg5 {[%emt 0:03:03]} 49. Re5+ {[%emt 0:01:20]} Kf4 {[%emt 0:00:36]} 50. Re1 {[%emt 0:01:13][%cal Og4g5] aiming for g5!} Rd6 {[%emt 0:04:12]} 51. Rf1+ {[%emt 0:08:07]} Kg5 {[%emt 0:01:06]} 52. Re1 {[%emt 0:00:46]} Rd4 {[%emt 0:00:46]} 53. Re5+ {[%emt 0:00:00]} Kf4 {[%emt 0:00:00]} 54. Re6 {[%emt 0:00:34]} Kf3 {[%emt 0:00:00]} 55. Rh2 {[%emt 0:00:38]} g5 {[%emt 0:00:56]} 56. Rf6+ {[%emt 0:02:33]} Rf4 {[%emt 0:00:39]} 57. Rfxh6 {[%emt 0:03:19]} Rxg4 {[%emt 0:00:30]} 58. R2h5 {[%emt 0:00:30]} Rb4+ {[%emt 0:00:18]} 59. Kc6 {[%emt 0:00:24]} g4 {[%emt 0:00:15]} 60. Rf6+ {[%emt 0:00:29]} Kg2 {[%emt 0:00:30]} 61. Kd5 {[%emt 0:00:30]} Bf2 {[%emt 0:00:42] ( -> ...Rb5+)} 62. Re5 $2 {[%emt 0:09:14][%mdl 8192] [#] Loses the game.} (62. Rh7 $15) 62... Rb5+ $1 {[%emt 0:00:41] Black mates.} 63. Ke4 {[%emt 0:00:16] [#]} Rxe5+ $1 {[%emt 0:00:30]} 64. Kxe5 {[%emt 0:00:02] KR-KB} g3 {[%emt 0:00:04]} 65. Kf4 {[%emt 0:00:43]} b5 {[%emt 0:00:56]} 66. Rf5 {[%emt 0:01:09]} b4 {[%emt 0:00:11]} 67. Rb5 {[%emt 0:01:02]} Kf1 {[%emt 0:00:41]} 68. Rxb4 {[%emt 0:06:58]} g2 {[%emt 0:00:03]} 69. Rb1+ {[%emt 0:01:10]} Be1 {[%emt 0:00:04]} 70. Kf3 g1=Q {Weighted Error Value: White=0.16 (very precise) /Black=0.14 (very precise)} ({Inferior is} 70... g1=B 71. Rxe1+ Kxe1 $11) 0-1

[Event "Polish Youth G18 Championship 2023"]
[Site "Jastrzebia Gora"]
[Date "2023.03.14"]
[Round "4.5"]
[White "Arciszewska, Zuzanna"]
[Black "Bukala, Weronika"]
[Result "1/2-1/2"]
[ECO "E16"]
[WhiteElo "1750"]
[BlackElo "1899"]
[Annotator "NA RC COMBH"]
[PlyCount "103"]
[EventDate "2023.03.11"]
[EventType "swiss"]
[EventCountry "POL"]
[SourceTitle "playchess.com"]
[Source "ChessBase"]
[SourceQuality "1"]
[TimeControl "40/5400+30:1800+30"]

1. d4 {[%emt 0:00:03]} Nf6 {[%emt 0:00:59]} 2. Nf3 {[%emt 0:00:31]} e6 {[%emt 0:00:40]} 3. c4 {[%emt 0:00:44]} Bb4+ {[%emt 0:02:16]} 4. Bd2 {[%emt 0:01:04]} Qe7 {[%emt 0:00:51]} 5. e3 {[%emt 0:03:45]} Bxd2+ {[%emt 0:00:28]} 6. Nbxd2 {[%emt 0:01:28]} d6 {[%emt 0:01:09]} 7. Bd3 {[%emt 0:12:46]} e5 {[%emt 0:05:12]} 8. e4 {[%emt 0:07:17]} O-O {[%emt 0:17:23]} 9. O-O {[%emt 0:01:51]} Nh5 {[%emt 0:07:05]} 10. Re1 {[%emt 0:10:40]} Nf4 {[%emt 0:02:27]} 11. Bf1 {[%emt 0:00:23]} Bg4 {[%emt 0:05:21]} 12. Qb3 {[%emt 0:03:18]} b6 {[%emt 0:06:53]} 13. Qc3 {[%emt 0:17:10]} Nd7 {[%emt 0:02:24]} 14. b4 {[%emt 0:04:58]} a5 {[%emt 0:09:34]} 15. a3 {[%emt 0:05:08]} axb4 {[%emt 0:01:56]} 16. axb4 {[%emt 0:00:44]} Rxa1 {[%emt 0:03:33]} 17. Rxa1 {[%emt 0:00:53]} exd4 {[%emt 0:00:22]} 18. Qxd4 {[%emt 0:01:56]} Ne5 {[%emt 0:00:38]} 19. Qe3 {[%emt 0:04:08]} Nxf3+ {[%emt 0:04:23]} 20. Nxf3 {[%emt 0:01:08]} Qf6 {[%emt 0:00:30]} 21. Ra3 {[%emt 0:04:37]} Re8 {[%emt 0:01:06]} 22. Nd2 {[%emt 0:01:32]} Qg5 {[%emt 0:03:30]} 23. f3 {[%emt 0:05:07]} Bc8 {[%emt 0:06:54]} 24. g3 {[%emt 0:00:37]} Nh3+ {[%emt 0:01:21]} 25. Bxh3 {[%emt 0:01:16]} Qxe3+ {[%emt 0:00:05]} 26. Rxe3 {[%emt 0:00:04]} Bxh3 {[%emt 0:00:04]} 27. Ra3 {[%emt 0:02:21]} f5 {[%emt 0:10:37]} 28. Kf2 {[%emt 0:01:04]} fxe4 {[%emt 0:00:23]} 29. Nxe4 {[%emt 0:00:35]} Bf5 {[%emt 0:01:02]} 30. Ra7 {[%emt 0:02:43]} Rc8 {[%emt 0:02:16]} 31. Ke3 {[%emt 0:01:09]} Be6 {[%emt 0:00:25]} 32. Kd3 {[%emt 0:02:33]} d5 {[%emt 0:00:21]} 33. cxd5 {[%emt 0:01:48]} Bxd5 {[%emt 0:00:06]} 34. Kd4 {[%emt 0:00:30]} Bb3 {[%emt 0:02:52]} 35. Ra3 {[%emt 0:01:21]} Bf7 {[%emt 0:00:19]} 36. Ra7 {[%emt 0:00:34]} Rd8+ {[%emt 0:00:40]} 37. Ke5 {[%emt 0:00:36]} Re8+ {[%emt 0:01:14]} 38. Kd4 {[%emt 0:00:27]} Rd8+ {[%emt 0:00:31]} 39. Ke5 {[%emt 0:00:17]} Rc8 {[%emt 0:00:43]} 40. Kd4 {[%emt 0:00:00]} h6 {[%emt 0:00:00]} 41. Ke5 {[%emt 0:03:37]} Re8+ {[%emt 0:01:31]} 42. Kd4 {[%emt 0:01:50]} Rd8+ {[%emt 0:00:22]} 43. Ke5 {[%emt 0:02:45]} Rd5+ {[%emt 0:05:28]} 44. Kf4 {[%emt 0:00:22]} Rb5 {[%emt 0:03:12]} 45. Rxc7 {[%emt 0:01:47]} Rxb4 {[%emt 0:00:10]} 46. Ke5 {[%emt 0:01:25]} Rb3 {[%emt 0:02:01]} 47. Rb7 {[%emt 0:03:53]} b5 {[%emt 0:03:58]} 48. Nd6 {[%emt 0:05:34]} Bc4 {[%emt 0:00:24]} 49. Nxc4 {[%emt 0:01:01]} bxc4 {[%emt 0:00:05]} 50. Rc7 $11 {[%emt 0:00:07]} Rxf3 {[%emt 0:01:25]} 51. Rxc4 {[%emt 0:00:07]} Rf2 {[%emt 0:00:13]} 52. h4 {[%emt 0:00:56]} 1/2-1/2